[Event "Early-Titled-Tuesday-Blitz-September-26-2023"]
[Site "Chess.com"]
[Date "2023.09.26"]
[Round "1"]
[White "marcodobrikov"]
[Black "IPAchess"]
[Result "1-0"]
[WhiteElo "2637"]
[BlackElo "2338"]
[TimeControl "180+1"]
[EndTime "8:04:46 PDT"]
[Termination "marcodobrikov won by resignation"]

1. Nc3 {[%clk 0:02:58.3]} 1... d5 {[%clk 0:02:54]} 2. e4 {[%clk 0:02:59.1]} 2...
e6 {[%clk 0:02:53.9]} 3. d4 {[%clk 0:02:58.7]} 3... Bb4 {[%clk 0:02:52.8]} 4. e5
{[%clk 0:02:57.8]} 4... c5 {[%clk 0:02:53.2]} 5. a3 {[%clk 0:02:58.7]} 5...
Bxc3+ {[%clk 0:02:53.6]} 6. bxc3 {[%clk 0:02:59.6]} 6... Nc6 {[%clk 0:02:54]} 7.
Be3 {[%clk 0:02:54.4]} 7... Qa5 {[%clk 0:02:52.5]} 8. Qd2 {[%clk 0:02:55.1]}
8... f6 {[%clk 0:02:50.5]} 9. f4 {[%clk 0:02:55.9]} 9... Nge7 {[%clk 0:02:49.1]}
10. Nf3 {[%clk 0:02:53.2]} 10... Nf5 {[%clk 0:02:48.2]} 11. Bf2 {[%clk
0:02:53.7]} 11... c4 {[%clk 0:02:44]} 12. g4 {[%clk 0:02:53.5]} 12... Nfe7
{[%clk 0:02:44.6]} 13. exf6 {[%clk 0:02:41.9]} 13... gxf6 {[%clk 0:02:44.2]} 14.
g5 {[%clk 0:02:42.8]} 14... fxg5 {[%clk 0:02:31.9]} 15. Nxg5 {[%clk 0:02:39.9]}
15... Bd7 {[%clk 0:02:31]} 16. Bh3 {[%clk 0:02:36.6]} 16... Nf5 {[%clk
0:02:22.8]} 17. Bxf5 {[%clk 0:02:32.8]} 17... exf5 {[%clk 0:02:22.8]} 18. Qe3+
{[%clk 0:02:31.6]} 18... Kf8 {[%clk 0:02:12.6]} 19. O-O {[%clk 0:02:32.5]} 19...
Re8 {[%clk 0:02:06.6]} 20. Qh3 {[%clk 0:02:27.1]} 20... h6 {[%clk 0:02:03.8]}
21. Qh5 {[%clk 0:02:21.3]} 21... Re7 {[%clk 0:01:33.3]} 22. Rae1 {[%clk
0:02:21.1]} 22... Be8 {[%clk 0:01:32]} 23. Qh3 {[%clk 0:02:18.8]} 23... Bg6
{[%clk 0:01:22.1]} 24. Rxe7 {[%clk 0:02:04.6]} 24... Nxe7 {[%clk 0:01:20.8]} 25.
Re1 {[%clk 0:02:05.5]} 25... Qxa3 {[%clk 0:01:09.7]} 26. Ne6+ {[%clk 0:02:02.6]}
26... Kf7 {[%clk 0:01:03.8]} 27. Bh4 {[%clk 0:02:03.5]} 27... Re8 {[%clk
0:00:52.2]} 28. Nc7 {[%clk 0:02:04]} 28... Rg8 {[%clk 0:00:49.2]} 29. Rxe7+
{[%clk 0:02:02.4]} 29... Qxe7 {[%clk 0:00:49.7]} 30. Bxe7 {[%clk 0:02:03.3]}
30... Kxe7 {[%clk 0:00:49.6]} 31. Nxd5+ {[%clk 0:02:03.2]} 31... Kd6 {[%clk
0:00:48.3]} 32. Ne3 {[%clk 0:02:03.5]} 1-0

[Event "Early-Titled-Tuesday-Blitz-September-26-2023"]
[Site "Chess.com"]
[Date "2023.09.26"]
[Round "1"]
[White "ChessQueen"]
[Black "amylazy"]
[Result "1-0"]
[WhiteElo "2745"]
[BlackElo "2445"]
[TimeControl "180+1"]
[EndTime "8:04:48 PDT"]
[Termination "ChessQueen won by resignation"]

1. Nf3 {[%clk 0:02:59.6]} 1... Nf6 {[%clk 0:02:42]} 2. d4 {[%clk 0:02:58.5]}
2... g6 {[%clk 0:02:41.8]} 3. c4 {[%clk 0:02:58.1]} 3... Bg7 {[%clk 0:02:41.2]}
4. Nc3 {[%clk 0:02:58.3]} 4... d5 {[%clk 0:02:41.1]} 5. cxd5 {[%clk 0:02:57]}
5... Nxd5 {[%clk 0:02:42]} 6. e3 {[%clk 0:02:57]} 6... O-O {[%clk 0:02:40.8]} 7.
Bc4 {[%clk 0:02:56.8]} 7... Nxc3 {[%clk 0:02:38.9]} 8. bxc3 {[%clk 0:02:56.7]}
8... c5 {[%clk 0:02:39.8]} 9. O-O {[%clk 0:02:56.7]} 9... Nc6 {[%clk 0:02:39.5]}
10. a4 {[%clk 0:02:50.5]} 10... Na5 {[%clk 0:02:35.6]} 11. Ba2 {[%clk
0:02:50.1]} 11... Qc7 {[%clk 0:02:25]} 12. Ba3 {[%clk 0:02:44.9]} 12... b6
{[%clk 0:02:22.8]} 13. Qe2 {[%clk 0:02:44.2]} 13... Bb7 {[%clk 0:02:19.5]} 14.
Rfd1 {[%clk 0:02:40]} 14... Rad8 {[%clk 0:02:18.4]} 15. Rac1 {[%clk 0:02:34.9]}
15... c4 {[%clk 0:02:02.9]} 16. e4 {[%clk 0:02:28.3]} 16... Qc6 {[%clk
0:01:54.1]} 17. Bxe7 {[%clk 0:02:15.5]} 17... Rde8 {[%clk 0:01:53.7]} 18. d5
{[%clk 0:02:13.6]} 18... Qxa4 {[%clk 0:01:52.6]} 19. Bxf8 {[%clk 0:02:13.2]}
19... Bxf8 {[%clk 0:01:50.5]} 20. e5 {[%clk 0:01:52.4]} 20... Qb5 {[%clk
0:01:43.4]} 21. d6 {[%clk 0:01:49.2]} 21... Bxf3 {[%clk 0:01:40.6]} 22. Qxf3
{[%clk 0:01:48.9]} 22... Qxe5 {[%clk 0:01:38.6]} 23. d7 {[%clk 0:01:46.5]} 23...
Rd8 {[%clk 0:01:38.9]} 24. Rd5 {[%clk 0:01:41.2]} 24... Qe7 {[%clk 0:01:34.3]}
25. Rcd1 {[%clk 0:01:41.1]} 25... Qa3 {[%clk 0:01:27.8]} 26. Bb1 {[%clk
0:01:38.7]} 26... Nb3 {[%clk 0:01:22.6]} 27. h4 {[%clk 0:01:35.4]} 27... Nc5
{[%clk 0:01:22.7]} 28. h5 {[%clk 0:01:35.1]} 28... Qa4 {[%clk 0:01:20.7]} 29.
hxg6 {[%clk 0:01:32]} 29... hxg6 {[%clk 0:01:21.6]} 30. Qg4 {[%clk 0:01:29.4]}
30... Nd3 {[%clk 0:01:17.5]} 31. R5xd3 {[%clk 0:01:19.2]} 31... cxd3 {[%clk
0:01:17.5]} 32. Qxa4 {[%clk 0:01:18.8]} 1-0

[Event "Early-Titled-Tuesday-Blitz-September-26-2023"]
[Site "Chess.com"]
[Date "2023.09.26"]
[Round "1"]
[White "LikeWater"]
[Black "Zampronha1971"]
[Result "1-0"]
[WhiteElo "2602"]
[BlackElo "2274"]
[TimeControl "180+1"]
[EndTime "8:04:52 PDT"]
[Termination "LikeWater won by resignation"]

1. d4 {[%clk 0:03:00]} 1... Nf6 {[%clk 0:02:59.1]} 2. Nf3 {[%clk 0:02:59.6]}
2... e6 {[%clk 0:02:58.6]} 3. Bg5 {[%clk 0:02:58.6]} 3... c5 {[%clk 0:02:56.2]}
4. e4 {[%clk 0:02:48.2]} 4... Qa5+ {[%clk 0:02:52.5]} 5. Bd2 {[%clk 0:02:38.5]}
5... Qb6 {[%clk 0:02:52.9]} 6. e5 {[%clk 0:02:25]} 6... Ne4 {[%clk 0:02:50.8]}
7. Bd3 {[%clk 0:02:23.6]} 7... Nxd2 {[%clk 0:02:48.6]} 8. Nbxd2 {[%clk
0:02:24.5]} 8... d5 {[%clk 0:02:41.6]} 9. dxc5 {[%clk 0:02:19.6]} 9... Bxc5
{[%clk 0:02:38.8]} 10. O-O {[%clk 0:02:19.5]} 10... Nc6 {[%clk 0:02:13.5]} 11.
c4 {[%clk 0:02:11.7]} 11... d4 {[%clk 0:02:12]} 12. Ne4 {[%clk 0:02:05]} 12...
Bd7 {[%clk 0:02:10.1]} 13. a3 {[%clk 0:01:53.6]} 13... a5 {[%clk 0:02:08.8]} 14.
Rb1 {[%clk 0:01:54.2]} 14... Rd8 {[%clk 0:01:58.6]} 15. b4 {[%clk 0:01:52.4]}
15... axb4 {[%clk 0:01:58.6]} 16. axb4 {[%clk 0:01:53.1]} 16... Bxb4 {[%clk
0:01:25.6]} 17. c5 {[%clk 0:01:43.2]} 17... Qc7 {[%clk 0:01:21.4]} 18. Nd6+
{[%clk 0:01:41.8]} 18... Kf8 {[%clk 0:01:22]} 19. Qc1 {[%clk 0:01:36.2]} 19...
Bc3 {[%clk 0:01:13]} 20. Rxb7 {[%clk 0:01:23.4]} 20... Qa5 {[%clk 0:01:12.2]}
21. Qf4 {[%clk 0:01:20.2]} 1-0

[Event "Early-Titled-Tuesday-Blitz-September-26-2023"]
[Site "Chess.com"]
[Date "2023.09.26"]
[Round "1"]
[White "Keeper0416"]
[Black "FMStan15"]
[Result "1-0"]
[WhiteElo "2548"]
[BlackElo "2097"]
[TimeControl "180+1"]
[EndTime "8:04:53 PDT"]
[Termination "Keeper0416 won by resignation"]

1. d4 {[%clk 0:02:57.7]} 1... Nf6 {[%clk 0:02:57]} 2. Bf4 {[%clk 0:02:58.2]}
2... g6 {[%clk 0:02:57.4]} 3. Nc3 {[%clk 0:02:57.5]} 3... Bg7 {[%clk 0:02:57.6]}
4. e4 {[%clk 0:02:58]} 4... d6 {[%clk 0:02:57.8]} 5. h4 {[%clk 0:02:56.8]} 5...
h5 {[%clk 0:02:57]} 6. f3 {[%clk 0:02:54.7]} 6... O-O {[%clk 0:02:56.7]} 7. Qd2
{[%clk 0:02:55.3]} 7... Kh7 {[%clk 0:02:55.9]} 8. Nh3 {[%clk 0:02:54.3]} 8...
Bxh3 {[%clk 0:02:54.9]} 9. Rxh3 {[%clk 0:02:55.2]} 9... Nc6 {[%clk 0:02:55.1]}
10. O-O-O {[%clk 0:02:50]} 10... e5 {[%clk 0:02:53.8]} 11. dxe5 {[%clk
0:02:48.5]} 11... dxe5 {[%clk 0:02:53.9]} 12. Be3 {[%clk 0:02:45]} 12... Qxd2+
{[%clk 0:02:52.7]} 13. Rxd2 {[%clk 0:02:45.9]} 13... Rad8 {[%clk 0:02:40.8]} 14.
Nb5 {[%clk 0:02:34.1]} 14... Rxd2 {[%clk 0:02:39]} 15. Bxd2 {[%clk 0:02:35]}
15... Rc8 {[%clk 0:02:38.4]} 16. c3 {[%clk 0:02:30.5]} 16... a6 {[%clk
0:02:38.5]} 17. Na3 {[%clk 0:02:31.1]} 17... b5 {[%clk 0:02:37.5]} 18. Be2
{[%clk 0:02:24.7]} 18... Bh6 {[%clk 0:02:32.5]} 19. Bxh6 {[%clk 0:02:23.1]}
19... Kxh6 {[%clk 0:02:32.3]} 20. Nc2 {[%clk 0:02:17.6]} 20... Ne7 {[%clk
0:02:22.3]} 21. Ne3 {[%clk 0:02:09.3]} 21... c6 {[%clk 0:02:15.4]} 22. Rh1
{[%clk 0:02:07.2]} 22... a5 {[%clk 0:02:15]} 23. a4 {[%clk 0:01:58.2]} 23... b4
{[%clk 0:02:11.1]} 24. Nc4 {[%clk 0:01:50.3]} 24... bxc3 {[%clk 0:02:08.7]} 25.
bxc3 {[%clk 0:01:51.2]} 25... Ra8 {[%clk 0:02:05.6]} 26. Nxe5 {[%clk 0:01:50.6]}
26... Kg7 {[%clk 0:02:03.2]} 27. Bc4 {[%clk 0:01:42.6]} 27... Ra7 {[%clk
0:01:51.6]} 28. Bxf7 {[%clk 0:01:24]} 28... Nd7 {[%clk 0:01:51.4]} 29. Nxd7
{[%clk 0:01:21.8]} 29... Kxf7 {[%clk 0:01:45.3]} 30. Nc5 {[%clk 0:01:20.9]}
30... Ke8 {[%clk 0:01:34.9]} 31. Kc2 {[%clk 0:01:19.6]} 31... Ng8 {[%clk
0:01:29.2]} 32. Rb1 {[%clk 0:01:15.5]} 32... Nf6 {[%clk 0:01:28.4]} 33. Rb8+
{[%clk 0:01:14.7]} 33... Ke7 {[%clk 0:01:28.4]} 34. Rb7+ {[%clk 0:01:14.9]}
34... Rxb7 {[%clk 0:01:28]} 35. Nxb7 {[%clk 0:01:15.8]} 35... Nd7 {[%clk
0:01:27.9]} 36. Nxa5 {[%clk 0:01:15.4]} 1-0

[Event "Early-Titled-Tuesday-Blitz-September-26-2023"]
[Site "Chess.com"]
[Date "2023.09.26"]
[Round "1"]
[White "Francisco_Ferrari"]
[Black "Kirill_Klukin"]
[Result "0-1"]
[WhiteElo "2420"]
[BlackElo "2718"]
[TimeControl "180+1"]
[EndTime "8:04:55 PDT"]
[Termination "Kirill_Klukin won by checkmate"]

1. e4 {[%clk 0:03:00.9]} 1... c5 {[%clk 0:02:59.4]} 2. Nf3 {[%clk 0:03:00.1]}
2... Nc6 {[%clk 0:02:58.5]} 3. d4 {[%clk 0:02:57.4]} 3... cxd4 {[%clk 0:02:54]}
4. Nxd4 {[%clk 0:02:58.3]} 4... e5 {[%clk 0:02:53.7]} 5. Nb5 {[%clk 0:02:55.6]}
5... d6 {[%clk 0:02:52.5]} 6. N1c3 {[%clk 0:02:54.5]} 6... a6 {[%clk 0:02:52.3]}
7. Na3 {[%clk 0:02:54.8]} 7... b5 {[%clk 0:02:52.1]} 8. Nd5 {[%clk 0:02:55.3]}
8... Nge7 {[%clk 0:02:51.6]} 9. c4 {[%clk 0:02:35.6]} 9... Nxd5 {[%clk
0:02:50.4]} 10. exd5 {[%clk 0:02:29.1]} 10... Nd4 {[%clk 0:02:50.5]} 11. cxb5
{[%clk 0:02:17.1]} 11... Bd7 {[%clk 0:02:50]} 12. bxa6 {[%clk 0:02:07.9]} 12...
Qa5+ {[%clk 0:02:49.8]} 13. Bd2 {[%clk 0:02:05.7]} 13... Qxd5 {[%clk 0:02:48.8]}
14. Nc4 {[%clk 0:01:46.5]} 14... Be7 {[%clk 0:02:29.8]} 15. Nb6 {[%clk
0:00:23.7]} 15... Qe4+ {[%clk 0:02:26.9]} 16. Be3 {[%clk 0:00:24]} 16... Nc2+
{[%clk 0:02:12]} 17. Kd2 {[%clk 0:00:15.8]} 17... Nxe3 {[%clk 0:02:04.4]} 18.
Qb3 {[%clk 0:00:08.1]} 18... Nxf1+ {[%clk 0:01:56.9]} 19. Rhxf1 {[%clk 0:00:09]}
19... Bg5+ {[%clk 0:01:55.4]} 20. Kd1 {[%clk 0:00:08]} 20... Qd4+ {[%clk
0:01:51.5]} 21. Ke1 {[%clk 0:00:07.8]} 21... Qd2# {[%clk 0:01:51.5]} 0-1

[Event "Early-Titled-Tuesday-Blitz-September-26-2023"]
[Site "Chess.com"]
[Date "2023.09.26"]
[Round "1"]
[White "JiiHart"]
[Black "TatjanaVasilevich"]
[Result "0-1"]
[WhiteElo "2168"]
[BlackElo "2565"]
[TimeControl "180+1"]
[EndTime "8:04:56 PDT"]
[Termination "TatjanaVasilevich won on time"]

1. e4 {[%clk 0:02:59.2]} 1... c5 {[%clk 0:02:58]} 2. c3 {[%clk 0:02:58.8]} 2...
d5 {[%clk 0:02:57.8]} 3. exd5 {[%clk 0:02:59]} 3... Qxd5 {[%clk 0:02:58.7]} 4.
d4 {[%clk 0:02:59.5]} 4... Nc6 {[%clk 0:02:59]} 5. Nf3 {[%clk 0:02:59.7]} 5...
cxd4 {[%clk 0:02:59.6]} 6. cxd4 {[%clk 0:02:59.6]} 6... e6 {[%clk 0:03:00.3]} 7.
Nc3 {[%clk 0:02:55.1]} 7... Qd8 {[%clk 0:02:59.6]} 8. Bd3 {[%clk 0:02:37.2]}
8... Nf6 {[%clk 0:02:59.5]} 9. h3 {[%clk 0:02:35.9]} 9... Be7 {[%clk 0:02:59.9]}
10. Be3 {[%clk 0:02:26.2]} 10... O-O {[%clk 0:02:54.2]} 11. Rc1 {[%clk
0:02:25.2]} 11... a6 {[%clk 0:02:47.9]} 12. Bb1 {[%clk 0:02:17.2]} 12... b6
{[%clk 0:02:45.3]} 13. Qd3 {[%clk 0:02:14.8]} 13... Nb4 {[%clk 0:02:45.6]} 14.
Qe2 {[%clk 0:02:12.9]} 14... Bb7 {[%clk 0:02:44.9]} 15. a3 {[%clk 0:02:11.3]}
15... Nbd5 {[%clk 0:02:45.1]} 16. Ne5 {[%clk 0:01:58.5]} 16... Rc8 {[%clk
0:02:37.3]} 17. Nxd5 {[%clk 0:01:39.1]} 17... Qxd5 {[%clk 0:02:35.4]} 18. Nf3
{[%clk 0:01:16.7]} 18... Rxc1+ {[%clk 0:02:31.8]} 19. Bxc1 {[%clk 0:01:15.8]}
19... Rc8 {[%clk 0:02:32.5]} 20. O-O {[%clk 0:00:57.3]} 20... Bd6 {[%clk
0:02:28.1]} 21. Bg5 {[%clk 0:00:43]} 21... Ne4 {[%clk 0:02:21.9]} 22. Bxe4
{[%clk 0:00:38.4]} 22... Qxe4 {[%clk 0:02:22.8]} 23. Qxe4 {[%clk 0:00:38.6]}
23... Bxe4 {[%clk 0:02:23.7]} 24. Nd2 {[%clk 0:00:15.5]} 24... Bd5 {[%clk
0:02:23.6]} 25. f3 {[%clk 0:00:06.2]} 25... Rc2 {[%clk 0:02:23.4]} 26. b4 {[%clk
0:00:05.4]} 26... f6 {[%clk 0:02:16.3]} 27. Kf2 {[%clk 0:00:02.8]} 27... fxg5
{[%clk 0:02:16.3]} 0-1

[Event "Early-Titled-Tuesday-Blitz-September-26-2023"]
[Site "Chess.com"]
[Date "2023.09.26"]
[Round "1"]
[White "nrvignesh"]
[Black "newyorkmouse"]
[Result "1-0"]
[WhiteElo "2854"]
[BlackElo "2493"]
[TimeControl "180+1"]
[EndTime "8:05:11 PDT"]
[Termination "nrvignesh won by resignation"]

1. Nf3 {[%clk 0:02:58.3]} 1... g6 {[%clk 0:02:59]} 2. e4 {[%clk 0:02:57.9]} 2...
Bg7 {[%clk 0:02:58.8]} 3. d4 {[%clk 0:02:58.3]} 3... d6 {[%clk 0:02:58.9]} 4.
Nc3 {[%clk 0:02:58.1]} 4... Nf6 {[%clk 0:02:55.3]} 5. h3 {[%clk 0:02:56.1]} 5...
O-O {[%clk 0:02:48.9]} 6. Be3 {[%clk 0:02:55.4]} 6... a6 {[%clk 0:02:43.2]} 7.
Bd3 {[%clk 0:02:52.3]} 7... b5 {[%clk 0:02:42.5]} 8. Ne2 {[%clk 0:02:50.5]} 8...
Bb7 {[%clk 0:02:41.4]} 9. Ng3 {[%clk 0:02:50.8]} 9... Nbd7 {[%clk 0:02:39.1]}
10. Qd2 {[%clk 0:02:50.8]} 10... c5 {[%clk 0:02:38.3]} 11. c3 {[%clk 0:02:51]}
11... Qc7 {[%clk 0:02:36.4]} 12. Bh6 {[%clk 0:02:49.3]} 12... Rac8 {[%clk
0:02:34.7]} 13. O-O {[%clk 0:02:48.2]} 13... Rfd8 {[%clk 0:02:34]} 14. Bxg7
{[%clk 0:02:40.6]} 14... Kxg7 {[%clk 0:02:34.9]} 15. Qg5 {[%clk 0:02:35.7]}
15... Nf8 {[%clk 0:02:21.8]} 16. d5 {[%clk 0:02:17.5]} 16... e6 {[%clk
0:02:00.3]} 17. c4 {[%clk 0:02:15]} 17... bxc4 {[%clk 0:01:54]} 18. Bxc4 {[%clk
0:02:14.7]} 18... exd5 {[%clk 0:01:54.4]} 19. Nf5+ {[%clk 0:02:07.7]} 19... Kg8
{[%clk 0:01:53.9]} 20. Qxf6 {[%clk 0:02:07.8]} 20... gxf5 {[%clk 0:01:53]} 21.
exd5 {[%clk 0:02:03.7]} 21... Qd7 {[%clk 0:01:39.6]} 22. Nh4 {[%clk 0:02:01.2]}
22... Ne6 {[%clk 0:00:46.3]} 23. Nxf5 {[%clk 0:01:45.9]} 23... Bxd5 {[%clk
0:00:31.1]} 24. Bxd5 {[%clk 0:01:44.1]} 24... Rb8 {[%clk 0:00:31.1]} 25. Rae1
{[%clk 0:01:39.7]} 1-0

[Event "Early-Titled-Tuesday-Blitz-September-26-2023"]
[Site "Chess.com"]
[Date "2023.09.26"]
[Round "1"]
[White "AradNazari"]
[Black "komogro"]
[Result "1-0"]
[WhiteElo "2809"]
[BlackElo "2473"]
[TimeControl "180+1"]
[EndTime "8:05:14 PDT"]
[Termination "AradNazari won by resignation"]

1. e4 {[%clk 0:03:00.3]} 1... g6 {[%clk 0:02:58.8]} 2. d4 {[%clk 0:02:59.8]}
2... Bg7 {[%clk 0:02:59.7]} 3. Nc3 {[%clk 0:02:59.7]} 3... d6 {[%clk 0:03:00.4]}
4. f4 {[%clk 0:02:59.8]} 4... Nc6 {[%clk 0:03:00.1]} 5. Nf3 {[%clk 0:02:58.7]}
5... Bg4 {[%clk 0:02:59.7]} 6. Be3 {[%clk 0:02:59.4]} 6... Bxf3 {[%clk
0:02:59.6]} 7. gxf3 {[%clk 0:03:00.3]} 7... d5 {[%clk 0:02:59.7]} 8. exd5 {[%clk
0:02:49.2]} 8... Nb4 {[%clk 0:02:59.5]} 9. Bb5+ {[%clk 0:02:49.7]} 9... Kf8
{[%clk 0:02:59.4]} 10. Bc4 {[%clk 0:02:40.2]} 10... Nf6 {[%clk 0:02:59]} 11. Qd2
{[%clk 0:02:36.9]} 11... Nfxd5 {[%clk 0:02:53.2]} 12. Nxd5 {[%clk 0:02:35.2]}
12... Nxd5 {[%clk 0:02:53.9]} 13. O-O-O {[%clk 0:02:35]} 13... e6 {[%clk
0:02:45.1]} 14. Kb1 {[%clk 0:02:27.4]} 14... Bf6 {[%clk 0:02:39.5]} 15. Bf2
{[%clk 0:02:24.2]} 15... Qd6 {[%clk 0:02:34.4]} 16. Bg3 {[%clk 0:02:12.6]} 16...
Qc6 {[%clk 0:02:33.5]} 17. Be2 {[%clk 0:02:06.5]} 17... b5 {[%clk 0:02:29.8]}
18. h4 {[%clk 0:01:56.2]} 18... h5 {[%clk 0:02:29]} 19. c3 {[%clk 0:01:52.6]}
19... Rb8 {[%clk 0:02:24.2]} 20. Ka1 {[%clk 0:01:48.9]} 20... a5 {[%clk
0:02:23.4]} 21. Bd3 {[%clk 0:01:47.8]} 21... a4 {[%clk 0:02:19.7]} 22. a3 {[%clk
0:01:44.5]} 22... Qb6 {[%clk 0:02:14.5]} 23. Be4 {[%clk 0:01:42.2]} 23... Qd6
{[%clk 0:01:58.6]} 24. Rhg1 {[%clk 0:01:36.2]} 24... Qd7 {[%clk 0:01:54.4]} 25.
Rde1 {[%clk 0:01:28]} 25... Nb6 {[%clk 0:01:53.8]} 26. Qc2 {[%clk 0:01:26.7]}
26... Rg8 {[%clk 0:01:47.2]} 27. Bf2 {[%clk 0:01:20.4]} 27... Qd6 {[%clk
0:01:33.9]} 28. Rg2 {[%clk 0:01:07.6]} 28... Qxf4 {[%clk 0:01:25.6]} 29. Bg3
{[%clk 0:01:06.4]} 29... Qh6 {[%clk 0:01:23.6]} 30. Bxc7 {[%clk 0:01:04.8]}
30... Kg7 {[%clk 0:01:22.9]} 31. Bxb8 {[%clk 0:00:51.1]} 31... Rxb8 {[%clk
0:01:23.6]} 32. Reg1 {[%clk 0:00:48.6]} 1-0

[Event "Early-Titled-Tuesday-Blitz-September-26-2023"]
[Site "Chess.com"]
[Date "2023.09.26"]
[Round "1"]
[White "seopie"]
[Black "whiteglovethief"]
[Result "1-0"]
[WhiteElo "2839"]
[BlackElo "2491"]
[TimeControl "180+1"]
[EndTime "8:05:15 PDT"]
[Termination "seopie won by resignation"]

1. d4 {[%clk 0:03:00.9]} 1... Nf6 {[%clk 0:02:59.5]} 2. c4 {[%clk 0:03:01]} 2...
c5 {[%clk 0:03:00.2]} 3. d5 {[%clk 0:03:00.5]} 3... b5 {[%clk 0:03:00.9]} 4.
cxb5 {[%clk 0:03:00.7]} 4... a6 {[%clk 0:03:01.6]} 5. bxa6 {[%clk 0:03:00.4]}
5... g6 {[%clk 0:03:02.2]} 6. Nc3 {[%clk 0:02:59.9]} 6... Bg7 {[%clk 0:03:02.7]}
7. a7 {[%clk 0:03:00.1]} 7... Rxa7 {[%clk 0:03:02.1]} 8. e4 {[%clk 0:03:00.3]}
8... d6 {[%clk 0:03:00.7]} 9. Nf3 {[%clk 0:02:58.7]} 9... O-O {[%clk 0:03:00.4]}
10. h3 {[%clk 0:02:58.9]} 10... Qa5 {[%clk 0:02:50.3]} 11. Bd2 {[%clk
0:02:58.2]} 11... Ba6 {[%clk 0:02:49.7]} 12. Nb5 {[%clk 0:02:55]} 12... Qb6
{[%clk 0:02:07.2]} 13. Nxa7 {[%clk 0:02:54.5]} 13... Nxe4 {[%clk 0:02:05.9]} 14.
Bxa6 {[%clk 0:02:42.2]} 14... Nxa6 {[%clk 0:02:04.7]} 15. Nc6 {[%clk 0:02:39.4]}
15... c4 {[%clk 0:02:02.6]} 16. O-O {[%clk 0:02:34.7]} 16... Bxb2 {[%clk
0:01:59.9]} 17. Qb1 {[%clk 0:01:51.7]} 17... c3 {[%clk 0:01:55.5]} 18. Qxe4
{[%clk 0:01:47.2]} 18... Bxa1 {[%clk 0:01:55.6]} 19. Rxa1 {[%clk 0:01:40.1]}
19... cxd2 {[%clk 0:01:53.5]} 20. Nxd2 {[%clk 0:01:40.6]} 20... e5 {[%clk
0:01:50.7]} 21. Nc4 {[%clk 0:01:29.7]} 21... Qc5 {[%clk 0:01:48.5]} 22. Ne3
{[%clk 0:01:22.6]} 22... Nc7 {[%clk 0:01:45.1]} 23. a4 {[%clk 0:01:20.8]} 23...
f5 {[%clk 0:01:44.2]} 24. Qc4 {[%clk 0:01:20.6]} 24... f4 {[%clk 0:01:43.6]} 25.
Qxc5 {[%clk 0:01:20.4]} 25... dxc5 {[%clk 0:01:44.5]} 26. d6 {[%clk 0:01:19.4]}
26... Ne6 {[%clk 0:01:30.4]} 27. Nc4 {[%clk 0:01:18.7]} 27... e4 {[%clk
0:01:26.7]} 28. d7 {[%clk 0:01:18.3]} 28... Nd8 {[%clk 0:01:20.9]} 29. Nxd8
{[%clk 0:01:16.4]} 29... Rxd8 {[%clk 0:01:20.1]} 30. Nb6 {[%clk 0:01:13.8]}
30... c4 {[%clk 0:01:17.6]} 31. Nxc4 {[%clk 0:01:12]} 31... Kf7 {[%clk
0:01:16.9]} 32. Nb6 {[%clk 0:01:11.8]} 32... Ke7 {[%clk 0:01:15.9]} 33. a5
{[%clk 0:01:12]} 33... Rb8 {[%clk 0:01:15.5]} 34. a6 {[%clk 0:01:03.9]} 34... e3
{[%clk 0:01:15.3]} 35. fxe3 {[%clk 0:01:03.2]} 35... fxe3 {[%clk 0:01:16.2]} 36.
a7 {[%clk 0:01:02]} 1-0

[Event "Early-Titled-Tuesday-Blitz-September-26-2023"]
[Site "Chess.com"]
[Date "2023.09.26"]
[Round "1"]
[White "sergeikim"]
[Black "Flopezin"]
[Result "1-0"]
[WhiteElo "2623"]
[BlackElo "2323"]
[TimeControl "180+1"]
[EndTime "8:05:23 PDT"]
[Termination "sergeikim won by resignation"]

1. d4 {[%clk 0:02:58.7]} 1... d5 {[%clk 0:02:58.5]} 2. c4 {[%clk 0:02:58.5]}
2... e6 {[%clk 0:02:58.1]} 3. Nc3 {[%clk 0:02:58.6]} 3... Nf6 {[%clk 0:02:56.9]}
4. Nf3 {[%clk 0:02:58.7]} 4... Be7 {[%clk 0:02:53.5]} 5. Bf4 {[%clk 0:02:58.6]}
5... O-O {[%clk 0:02:42.9]} 6. e3 {[%clk 0:02:58.8]} 6... b6 {[%clk 0:02:40.6]}
7. cxd5 {[%clk 0:02:57.6]} 7... exd5 {[%clk 0:02:39.1]} 8. Bd3 {[%clk 0:02:56]}
8... Bb7 {[%clk 0:02:37.1]} 9. Ne5 {[%clk 0:02:55.3]} 9... Nbd7 {[%clk
0:02:28.9]} 10. O-O {[%clk 0:02:55.1]} 10... Rc8 {[%clk 0:01:58.6]} 11. Qf3
{[%clk 0:02:52.4]} 11... c5 {[%clk 0:01:45.7]} 12. Qh3 {[%clk 0:02:51.6]} 12...
g6 {[%clk 0:01:35.3]} 13. Rad1 {[%clk 0:02:42.3]} 13... cxd4 {[%clk 0:01:20.9]}
14. exd4 {[%clk 0:02:42]} 14... Nxe5 {[%clk 0:01:15.3]} 15. dxe5 {[%clk
0:02:40.3]} 15... Nh5 {[%clk 0:01:12.8]} 16. Bh6 {[%clk 0:02:38.8]} 16... Re8
{[%clk 0:01:11.2]} 17. e6 {[%clk 0:02:38]} 17... fxe6 {[%clk 0:00:38.4]} 18.
Qxe6+ {[%clk 0:02:35.9]} 18... Kh8 {[%clk 0:00:38.8]} 19. Bxg6 {[%clk
0:02:20.9]} 19... Nf6 {[%clk 0:00:17.9]} 20. Bxe8 {[%clk 0:02:05.4]} 20... Qxe8
{[%clk 0:00:18.8]} 21. Rfe1 {[%clk 0:01:58.8]} 21... d4 {[%clk 0:00:13]} 22.
Qxe7 {[%clk 0:01:53]} 22... Qxe7 {[%clk 0:00:11.8]} 23. Rxe7 {[%clk 0:01:52.6]}
23... dxc3 {[%clk 0:00:12.7]} 24. bxc3 {[%clk 0:01:48.9]} 24... Bc6 {[%clk
0:00:09.8]} 25. Bg7+ {[%clk 0:01:47.7]} 25... Kg8 {[%clk 0:00:09.8]} 26. Bxf6
{[%clk 0:01:48.2]} 26... Kf8 {[%clk 0:00:09.6]} 27. Rxh7 {[%clk 0:01:46.8]}
27... Re8 {[%clk 0:00:09.2]} 28. Rh8+ {[%clk 0:01:45.8]} 28... Kf7 {[%clk
0:00:09.8]} 29. Rxe8 {[%clk 0:01:46.3]} 29... Bxe8 {[%clk 0:00:10.7]} 30. Bd4
{[%clk 0:01:45.9]} 30... Bc6 {[%clk 0:00:10.9]} 31. h4 {[%clk 0:01:45.3]} 1-0